bitfinex/quotes_SOLUSD_20260202
["timestamp","ask_amount","ask_price","bid_price","bid_amount"]
[1770055908055,1.4909207,104.4,104.38,0.1]
[1770055909472,1.52708307,104.39,104.36,36.92013278]
[1770055909974,1.52708307,104.39,104.36,33.3958034]
[1770055910360,11.10670103,104.39,104.36,23.81409483]
[1770055910558,5.06091401,104.38,104.36,0.1]
[1770055910763,1.52890536,104.37,104.36,0.1]
[1770055910961,1.52890536,104.37,104.34,14.75647488]
[1770055911170,1.52890536,104.38,104.35,14.65583721]
[1770055911384,1.52890536,104.37,104.34,11.22458393]
[1770055911580,1.52890536,104.4,104.37,1.54075746]
[1770055911767,1.52890536,104.4,104.37,5.07276611]
[1770055912075,1.52890536,104.42,104.38,1.54075746]
[1770055912275,1.52890536,104.39,104.35,1.54075746]
[1770055912461,1.52890536,104.38,104.35,1.54075746]
[1770055913075,1.52890536,104.38,104.35,14.65550825]
[1770055913471,1.52890536,104.4,104.37,14.65378118]
[1770055913776,1.52890536,104.4,104.38,3.53200865]
[1770055915263,1.52890536,104.4,104.37,14.65378118]
[1770055915463,1.52890536,104.38,104.35,1.54075746]
[1770055915672,1.52890536,104.37,104.34,1.64075746]
[1770055915983,1.52890536,104.37,104.34,5.17276611]
[1770055916398,11.110404,104.37,104.34,5.17276611]
[1770055916785,11.10957332,104.38,104.35,5.07276611]
[1770055917380,11.10889344,104.39,104.37,3.53200865]
[1770055917559,11.10889344,104.39,104.36,5.07276611]
[1770055918589,11.10889344,104.39,104.36,1.54075746]
[1770055918791,35.05754752,104.39,104.35,5.07276611]
[1770055919587,1.52890536,104.38,104.35,5.07276611]
[1770055919967,1.52890536,104.37,104.34,0.1]
[1770055920169,5.06091401,104.37,104.34,1e-08]
[1770055920367,1.52890536,104.36,104.34,1e-08]
[1770055920768,11.11203904,104.35,104.34,1e-08]
[1770055922868,14.64404769,104.35,104.34,1e-08]
[1770055923186,11.11203904,104.35,104.34,1e-08]
[1770055924586,14.64404769,104.35,104.34,1e-08]
[1770055925687,11.11203904,104.35,104.34,1e-08]
[1770055928388,9.58313368,104.35,104.34,1e-08]
[1770055929784,11.11203904,104.35,104.34,1e-08]
[1770055930278,9.58313368,104.35,104.34,1e-08]
[1770055930599,9.58313368,104.35,104.34,1.54075747]
[1770055930776,9.58313368,104.35,104.34,1e-08]
[1770055934088,38.6018819,104.35,104.31,3.53200865]
[1770055935384,35.06987325,104.35,104.31,3.53200865]
[1770055935791,35.06987325,104.35,104.31,2.03200865]
[1770055935990,35.06987325,104.35,104.32,1.54075746]
[1770055936895,35.06987325,104.35,104.32,5.07276611]
[1770055937197,35.06987325,104.35,104.32,1.54075746]
[1770055937987,9.58313368,104.35,104.33,1.54075746]
[1770055938382,23.95257216,104.38,104.34,5.07276611]
[1770055938581,37.06654921,104.37,104.33,1.54075746]
[1770055939186,3.53200865,104.36,104.33,1.54075746]
[1770055939983,3.53200865,104.35,104.32,1.69310099]
[1770055940399,5.18478178,104.35,104.32,1.69310099]
[1770055941593,9.58405213,104.34,104.32,1.69310099]
[1770055948291,11.23629914,104.35,104.32,1.69310099]
[1770055948508,11.2352867,104.36,104.33,1.69310099]
[1770055949384,1.65277313,104.35,104.33,1.69310099]
[1770055949986,1.65277313,104.35,104.32,1.69310099]
[1770055949987,11.23598652,104.35,104.32,1.69310099]
[1770055950510,11.23598652,104.35,104.32,11.27889838]
[1770055951112,1.65277313,104.35,104.32,11.27889838]
[1770055951292,14.76798279,104.35,104.32,1.69310099]
[1770055951616,11.23597414,104.35,104.32,1.69310099]
[1770055952000,11.23597414,104.35,104.32,11.27891645]
[1770055952202,14.76749466,104.36,104.33,1.69310099]
[1770055952600,1.65277313,104.35,104.33,1.69310099]
[1770055953998,13.11472153,104.36,104.33,1.69310099]
[1770055953999,11.23446969,104.37,104.34,1.69310099]
[1770055954702,14.76647834,104.37,104.34,1.69310099]
[1770055955294,11.23446969,104.37,104.34,1.69310099]
[1770055961718,38.7197216,104.37,104.34,1.69310099]
[1770055961902,5.18478178,104.35,104.32,1.69310099]
[1770055962103,3.53200865,104.34,104.32,1.69310099]
[1770055962503,5.18478178,104.35,104.32,1.69310099]
[1770055962917,1.65277313,104.35,104.32,1.69310099]
[1770055963217,1.65277313,104.34,104.31,11.27985064]
[1770055963405,5.18478178,104.34,104.31,11.27985064]
[1770055963827,1.65277313,104.34,104.32,1.69310099]
[1770055964423,5.18478178,104.34,104.31,11.27985064]
[1770055966619,1.65277313,104.33,104.31,1.69310099]
[1770055966824,14.76910408,104.34,104.31,1.69310099]
[1770055971612,9.58354144,104.35,104.32,1.727278]
[1770055971819,1.89416795,104.34,104.32,1.727278]
[1770055972111,1.89416795,104.34,104.31,1.727278]
[1770055972617,5.429504,104.34,104.31,1.727278]
[1770055973226,15.01368392,104.34,104.31,1.727278]
[1770055973433,1.89416795,104.34,104.31,14.84927781]
[1770055973622,11.4742202,104.39,104.35,0.14253058]
[1770055973930,11.4742202,104.39,104.36,3.53533605]
[1770055974526,1.89416795,104.37,104.32,0.15280922]
[1770055974714,1.89416795,104.35,104.31,9.73947298]
[1770055974916,1.89416795,104.34,104.31,0.15280922]
[1770055975115,1.89416795,104.34,104.3,13.6122099]
[1770055976035,1.89416795,104.34,104.31,0.1629698]
[1770055976828,1.89416795,104.34,104.31,3.69830585]
[1770055978233,1.89416795,104.34,104.31,13.12202708]
[1770055980134,1.89416795,104.34,104.31,13.30658684]
[1770055981035,1.89416795,104.33,104.3,0.50735779]
[1770055981241,1.89416795,104.33,104.3,0.326826]
[1770055981736,1.89416795,104.33,104.3,3.86216205]
[1770055982514,1.89416795,104.32,104.3,3.86216205]
[1770055983644,1.89416795,104.33,104.3,10.0870964]
[1770055983954,1.89416795,104.33,104.3,13.62243245]
[1770055984631,1.89416795,104.33,104.3,13.44981834]
[1770055987833,11.47582429,104.37,104.33,0.15731715]
[1770055988032,1.89416795,104.37,104.36,3.53533605]
[1770055988621,1.94020269,104.38,104.36,3.53533605]
[1770055988820,4.99684431,104.44,104.37,5.26261405]
[1770055989034,9.57813944,104.41,104.39,3.53533605]
[1770055989233,9.57813944,104.41,104.39,3.07053803]
[1770055989525,9.57813944,104.41,104.38,1.727278]
[1770055989836,30.91527085,104.44,104.39,3.53533605]
[1770055989837,23.94208701,104.42,104.39,3.53533605]
[1770055990040,23.94208701,104.42,104.38,1.727278]
[1770055990217,23.94208701,104.42,104.39,3.53533605]
[1770055990639,9.57579239,104.43,104.4,3.53533605]
[1770055990839,38.1092485,104.44,104.41,3.53533605]
[1770055991459,28.53416795,104.44,104.42,3.53533605]
[1770055991647,1.89416795,104.44,104.42,3.53533605]
[1770055992539,9.77433061,104.45,104.42,3.53533605]
[1770055992540,11.66849856,104.45,104.42,5.26261405]
[1770055992841,2.09416795,104.45,104.43,3.53533605]
[1770055993148,1.89416795,104.44,104.41,14.83974256]
[1770055993443,1.89416795,104.44,104.42,3.53533605]
[1770055995132,2.09416795,104.45,104.43,3.53533605]
[1770055995929,6.99983933,104.47,104.44,5.26261405]
[1770055996128,1.89416795,104.46,104.44,3.53533605]
[1770055996343,1.89416795,104.46,104.42,23.94142798]
[1770055996344,1.89416795,104.46,104.42,3.53533605]
[1770055996545,1.89416795,104.45,104.41,11.30454176]
[1770055996736,1.89416795,104.45,104.41,14.83987781]
[1770055997128,1.89416795,104.44,104.41,5.26261405]
[1770055998532,1.89416795,104.44,104.42,3.53533605]
[1770055999655,1.89416795,104.45,104.43,3.53533605]
[1770056000933,11.46822554,104.45,104.43,3.53533605]
[1770056001138,11.46822554,104.45,104.42,5.26261405]
[1770056001649,1.83600328,104.44,104.41,3.53533605]
[1770056002645,1.83600328,104.44,104.4,11.30831552]
[1770056002949,11.41097434,104.44,104.41,3.53533605]
[1770056004444,1.83600328,104.44,104.42,3.53533605]
[1770056006350,1.83600328,104.45,104.43,3.53533605]
[1770056006928,1.83600328,104.45,104.42,3.53533605]
[1770056007150,1.83600328,104.45,104.43,3.53533605]
[1770056007355,6.94167466,104.47,104.44,5.26555649]
[1770056007538,0.2,104.48,104.46,5.26555649]
[1770056007848,0.2,104.48,104.46,3.53533605]
[1770056008050,2.03600328,104.48,104.45,1.73022044]
[1770056008256,2.03600328,104.48,104.46,3.53533605]
[1770056008754,0.2,104.48,104.47,3.53533605]
[1770056009138,0.2,104.49,104.47,14.83768245]
[1770056009333,0.2,104.49,104.48,3.53533605]
[1770056009536,6.22627537,104.5,104.48,3.53533605]
[1770056009859,1.83600328,104.51,104.48,3.53533605]
[1770056010037,1.83600328,104.51,104.47,14.66017254]
[1770056010365,1.83600328,104.51,104.48,3.53533605]
[1770056011155,11.40447295,104.51,104.48,3.53533605]
[1770056011430,1.83600328,104.5,104.47,3.53533605]
[1770056012363,1.83600328,104.48,104.45,3.53533605]
[1770056012853,1.83600328,104.46,104.43,14.64684291]
[1770056013154,11.40927711,104.46,104.43,3.53533605]
[1770056013345,11.40927711,104.46,104.42,14.63961683]
[1770056014055,11.40927711,104.46,104.42,5.06334978]
[1770056014253,1.83600328,104.45,104.42,5.06334978]
[1770056014853,1.83600328,104.45,104.42,1.52801373]
[1770056015239,1.83600328,104.44,104.4,11.08900466]
[1770056015538,1.83600328,104.44,104.4,14.62434071]
[1770056016145,1.83600328,104.44,104.41,3.53533605]
[1770056016457,1.83600328,104.44,104.41,8.82089562]
[1770056016954,1.83600328,104.45,104.43,8.82089562]
[1770056017141,1.83600328,104.44,104.41,19.89138704]
[1770056017338,1.83600328,104.44,104.41,18.39843685]
[1770056017642,9.57409824,104.45,104.41,19.89138704]
[1770056017947,1.83600328,104.45,104.42,18.3975806]
[1770056018762,1.83600328,104.45,104.42,19.88173035]
[1770056019057,1.83600328,104.46,104.43,10.296346]
[1770056019256,1.83600328,104.47,104.44,8.82089562]
[1770056020237,1.83600328,104.48,104.45,8.82089562]
[1770056021646,11.40729461,104.48,104.45,8.82089562]
[1770056022763,1.83600328,104.48,104.45,19.84468338]
[1770056022958,28.43600328,104.5,104.47,8.82089562]
[1770056023171,1.83600328,104.51,104.48,10.26253633]
[1770056023453,1.83600328,104.51,104.48,8.82089562]
[1770056023659,11.40466293,104.51,104.48,8.82089562]
[1770056025351,1.83600328,104.48,104.45,10.24620843]
[1770056025552,1.83600328,104.48,104.45,8.82089562]
[1770056025765,1.83600328,104.47,104.44,19.82065227]
[1770056025976,1.83600328,104.47,104.43,19.8215399]
[1770056025977,1.83600328,104.46,104.43,19.8215399]
[1770056026142,1.83600328,104.45,104.42,18.39726005]
[1770056026542,1.83600328,104.48,104.44,10.23818486]
[1770056026759,1.83600328,104.48,104.45,8.82089562]
[1770056027059,28.43600328,104.49,104.46,10.23818486]
[1770056027361,28.43600328,104.49,104.46,8.82089562]
[1770056029442,38.00645062,104.49,104.45,19.80374275]
[1770056030169,11.40645062,104.49,104.45,19.80374275]
[1770056031169,1.74475713,104.48,104.45,19.80374275]
[1770056031563,1.74475713,104.47,104.44,10.9382846]
[1770056031771,1.74475713,104.47,104.44,8.82089562]
[1770056031952,1.74475713,104.46,104.43,19.75982396]
[1770056034444,1.74475713,104.46,104.43,19.75663658]
[1770056034646,1.74475713,104.46,104.44,8.81770824]
[1770056035076,1.74475713,104.46,104.43,19.75663658]
[1770056035874,1.74475713,104.46,104.43,19.75701783]
[1770056036049,11.31783999,104.46,104.42,19.72188583]
[1770056037056,20.13554823,104.46,104.42,19.72188583]
[1770056038354,11.31783999,104.46,104.42,14.43142048]
[1770056038554,1.74475713,104.45,104.42,14.43142048]
[1770056039766,1.74475713,104.45,104.43,3.52724289]
[1770056040166,1.74475713,104.46,104.43,13.1028533]
[1770056040867,1.74475713,104.46,104.43,14.40360732]
[1770056041170,1.74475713,104.46,104.44,3.52724289]
[1770056041574,1.74475713,104.47,104.44,4.82140403]
[1770056041750,1.74475713,104.47,104.44,14.3959275]
[1770056042275,1.74475713,104.46,104.44,3.52724289]
[1770056042447,1.74475713,104.46,104.42,34.8051202]
[1770056042773,1.74475713,104.44,104.4,14.39288539]
[1770056042974,1.74475713,104.42,104.38,26.01485592]
[1770056043156,1.74475713,104.4,104.37,10.86203925]
[1770056043361,1.74475713,104.4,104.33,47.92051355]
[1770056043362,1.74475713,104.4,104.36,10.86297613]
[1770056043557,1.74475713,104.4,104.34,1.28120167]
[1770056043760,1.74475713,104.4,104.36,13.10906977]
[1770056044076,16.99496576,104.42,104.39,5.14526807]
[1770056044277,16.99496576,104.42,104.4,3.52724289]
[1770056044453,9.57395883,104.45,104.41,10.43941747]
[1770056044658,13.70609561,104.44,104.42,8.82139229]
[1770056045048,13.70609561,104.44,104.4,1.61802518]
[1770056045267,8.82139229,104.43,104.39,10.43941747]
[1770056045958,1.74475713,104.42,104.39,20.0186575]
[1770056046158,25.02603157,104.44,104.41,8.82139229]
[1770056046869,1.74475713,104.43,104.41,8.82139229]
[1770056047365,1.74475713,104.43,104.4,1.61802518]
[1770056047570,1.74475713,104.43,104.4,10.43941747]
[1770056048368,1.74475713,104.43,104.4,8.82139229]
[1770056048569,1.74475713,104.43,104.4,18.39985296]
[1770056048570,11.3205807,104.43,104.4,18.39985296]
[1770056048757,11.3205807,104.43,104.4,8.82139229]
[1770056049351,11.3205807,104.43,104.4,18.3999002]
[1770056049556,1.74475713,104.43,104.4,18.3999002]
[1770056050273,1.74475713,104.43,104.41,8.82139229]
[1770056051781,1.74475713,104.42,104.4,8.82139229]
[1770056052981,1.74475713,104.43,104.4,8.82139229]
[1770056054469,1.74475713,104.42,104.4,8.82139229]
[1770056054863,1.74475713,104.43,104.41,8.82139229]
[1770056055273,11.32065445,104.43,104.41,8.82139229]
[1770056055591,1.74475713,104.42,104.41,8.82139229]
[1770056055759,1.74475713,104.42,104.39,10.89917584]
[1770056055959,1.74475713,104.42,104.4,8.82139229]
[1770056057278,11.32147464,104.42,104.4,8.82139229]
[1770056057462,11.32147464,104.42,104.39,18.40074513]
[1770056057664,1.74475713,104.42,104.4,8.82139229]
[1770056060457,1.74475713,104.42,104.4,18.39992868]
[1770056060664,1.74475713,104.42,104.4,8.82139229]
[1770056062357,1.74475713,104.42,104.39,19.67263442]
[1770056064490,1.74475713,104.42,104.4,8.82139229]
[1770056066582,1.74475713,104.42,104.4,3.52891813]
[1770056067080,1.74475713,104.42,104.39,10.85124213]
[1770056067379,1.74475713,104.42,104.4,3.52891813]
[1770056070385,1.74475713,104.42,104.39,10.85124213]
[1770056070589,1.74475713,104.42,104.4,3.52891813]
[1770056070881,1.74475713,104.42,104.37,1.22858827]
[1770056071095,1.53475964,104.41,104.38,3.52891813]
[1770056071477,1.53475964,104.41,104.37,14.33841005]
[1770056071791,1.53475964,104.4,104.37,14.33841005]
[1770056072784,1.53475964,104.4,104.38,3.52891813]
[1770056072987,1.53475964,104.4,104.37,10.80949192]
[1770056073161,1.53475964,104.4,104.37,14.33841005]
[1770056075694,1.53475964,104.4,104.37,10.80949192]
[1770056075870,1.53475964,104.4,104.37,14.33841005]
[1770056076072,1.53475964,104.4,104.37,13.10982178]
[1770056076891,1.53475964,104.4,104.37,14.30817241]
[1770056080386,1.53475964,104.39,104.36,10.76111705]
[1770056080585,1.53475964,104.39,104.37,3.52891813]
[1770056081798,1.53475964,104.39,104.36,10.76111705]
[1770056081998,1.53475964,104.39,104.37,3.52891813]
[1770056086802,1.53475964,104.39,104.37,13.1096246]
[1770056087012,1.53475964,104.4,104.37,10.73309353]
[1770056087191,1.53475964,104.41,104.38,4.67699417]
[1770056087704,1.53475964,104.41,104.38,3.52891813]
[1770056089023,1.53475964,104.4,104.38,3.52891813]
[1770056089808,1.53475964,104.4,104.37,14.25770064]
[1770056090021,1.54625011,104.38,104.35,1.13132145]
[1770056090199,1.54625011,104.38,104.32,0.1]
[1770056090200,1.54625011,104.37,104.34,14.23967393]
[1770056091516,1.54625011,104.37,104.34,10.7107558]
[1770056091717,1.54625011,104.37,104.34,14.23967393]
[1770056093812,1.54625011,104.37,104.35,13.1119175]
[1770056094613,1.54625011,104.37,104.34,9.58357193]
[1770056094821,1.54625011,104.37,104.34,13.11249006]
[1770056095310,1.54625011,104.37,104.34,9.58357193]
[1770056095506,1.54625011,104.37,104.34,13.11249006]
[1770056096538,1.54625011,104.37,104.34,14.53981366]
[1770056096898,1.54625011,104.38,104.35,1.4231444]
[1770056097100,1.54625011,104.38,104.35,3.53309733]
[1770056097303,1.54625011,104.38,104.35,4.95624173]
[1770056098619,1.54625011,104.38,104.35,14.53912585]
[1770056098793,1.54625011,104.38,104.35,11.00602852]
[1770056100016,11.12718843,104.38,104.35,1.4231444]
[1770056100398,1.54625011,104.38,104.35,11.00618294]
[1770056101406,1.54625011,104.38,104.35,14.53928027]
[1770056102219,0.43044157,104.37,104.34,28.91616406]
[1770056102419,0.43044157,104.38,104.35,1.4231444]
[1770056102624,0.43044157,104.36,104.33,1.4231444]
[1770056102923,3.9635389,104.36,104.33,1.4231444]
[1770056103121,6.93729745,104.35,104.33,1.4231444]
[1770056103321,4.94882261,104.35,104.34,1.4231444]
[1770056103526,13.11384664,104.38,104.34,4.95624173]
[1770056103832,1.54625011,104.38,104.35,4.95624173]
[1770056104121,11.12666632,104.38,104.35,1.4231444]
[1770056104301,1.54625011,104.37,104.34,1.4231444]
[1770056104502,1.54625011,104.36,104.33,11.00809623]
[1770056105832,1.54625011,104.36,104.33,14.54119356]
[1770056106622,1.54625011,104.36,104.34,3.53309733]
[1770056107224,11.12662949,104.38,104.35,3.53309733]
[1770056107424,1.54625011,104.38,104.35,3.53309733]
[1770056108922,1.54625011,104.38,104.35,13.11595099]
[1770056109127,1.54625011,104.38,104.35,14.53909539]
[1770056111633,1.54625011,104.36,104.33,1.4231444]
[1770056111832,5.07934744,104.34,104.32,0.1]
[1770056112024,1.54625011,104.32,104.29,30.1]
[1770056112226,5.07934744,104.31,104.29,30.1]
[1770056112425,31.69934744,104.34,104.3,1.4231444]
[1770056113136,1.54625011,104.34,104.3,4.95624173]
[1770056113435,1.54625011,104.34,104.3,14.54339668]
[1770056113636,11.13046176,104.34,104.3,14.54339668]
[1770056116830,1.54625011,104.34,104.31,1.4231444]
[1770056117038,1.54625011,104.34,104.31,4.95624173]
[1770056117535,1.54625011,104.34,104.31,1.4231444]
[1770056118427,1.54625011,104.34,104.31,11.00975401]
[1770056118741,1.54625011,104.34,104.31,14.54285134]
[1770056119523,1.54625011,104.34,104.31,11.00975401]
[1770056119931,5.07934744,104.34,104.31,11.00975401]
[1770056123641,5.07934744,104.34,104.31,10.50975401]
[1770056124541,15.26566003,104.35,104.31,13.11970694]
[1770056124746,1.40682637,104.35,104.33,3.53309733]
[1770056124935,1.40682637,104.35,104.32,3.53309733]
[1770056125643,1.40682637,104.35,104.33,10.95393905]
[1770056126048,1.40682637,104.35,104.31,23.96702137]
[1770056126049,1.40682637,104.34,104.31,10.95540487]
[1770056126344,1.40682637,104.34,104.31,10.95576871]
[1770056126933,1.40682637,104.34,104.31,14.48886604]
[1770056127446,25.36246919,104.36,104.32,1.36896829]
[1770056127748,1.40682637,104.38,104.35,4.90206562]
[1770056127934,1.40682637,104.36,104.33,9.58448529]
[1770056128133,1.40682637,104.34,104.31,14.48836582]
[1770056128641,1.40682637,104.35,104.32,14.48792059]
[1770056130930,1.40682637,104.35,104.29,31.46896829]
[1770056130931,1.40682637,104.33,104.29,31.46896829]
[1770056131136,1.40682637,104.32,104.29,41.05710475]
[1770056131746,4.9399237,104.32,104.29,41.05710475]
[1770056131947,4.9399237,104.3,104.29,30.1]
[1770056132131,14.52737842,104.31,104.29,30.1]
[1770056132749,1.40682637,104.31,104.29,30.1]
[1770056133050,1.40682637,104.3,104.29,30.1]
[1770056133250,4.9399237,104.3,104.29,30.1]
[1770056133752,1.40682637,104.3,104.29,30.1]
[1770056134453,4.9399237,104.3,104.29,30.1]
[1770056134953,4.9399237,104.3,104.27,3.84111866]
[1770056135451,4.9399237,104.3,104.27,13.43147505]
[1770056135649,1.40682637,104.31,104.28,10.95806911]
[1770056135851,4.9399237,104.31,104.28,10.95806911]
[1770056137656,1.40682637,104.32,104.29,1.36896829]
[1770056137834,4.9399237,104.32,104.29,1.36896829]
[1770056138553,4.9399237,104.33,104.3,1.36896829]
[1770056138750,26.64,104.36,104.33,1.36896829]
[1770056138751,1.40682637,104.36,104.33,1.36896829]
[1770056139057,3.53309733,104.37,104.34,10.95302042]
[1770056139058,1.40682637,104.37,104.34,10.95302042]
[1770056140953,1.40682637,104.34,104.31,1.36896829]
[1770056141156,3.53309733,104.35,104.29,10.95729213]
[1770056141157,4.9399237,104.32,104.29,10.95729213]
[1770056141358,4.9399237,104.31,104.27,13.43108442]
[1770056141653,3.53309733,104.3,104.27,3.84111866]
[1770056141836,3.53309733,104.3,104.27,13.43157298]
[1770056142558,3.53309733,104.3,104.27,3.84111866]
[1770056143454,14.52702505,104.31,104.27,3.84111866]
[1770056144161,4.9399237,104.3,104.27,3.84111866]
[1770056144356,4.9399237,104.3,104.27,13.43157195]
[1770056144659,1.40682637,104.3,104.27,13.43157195]
[1770056146242,1.40682637,104.32,104.28,1.36896829]
[1770056146442,9.21519455,104.33,104.29,4.90206562]
[1770056146634,4.27527085,104.33,104.3,4.90206562]
[1770056146840,5.68209722,104.33,104.3,4.90206562]
[1770056147240,5.68209722,104.33,104.3,1.36896829]
[1770056148140,15.26743733,104.33,104.3,1.36896829]
[1770056148340,15.26743733,104.33,104.3,10.95663453]
[1770056148341,9.21519455,104.33,104.3,10.95663453]
[1770056150958,9.21519455,104.33,104.28,10.89893826]
[1770056150959,4.90477819,104.31,104.28,10.89893826]
[1770056151156,4.90477819,104.32,104.29,1.30977833]
[1770056151348,4.90477819,104.32,104.29,10.89840143]
[1770056153447,4.90477819,104.32,104.29,1.30977833]
[1770056154162,4.90477819,104.32,104.29,10.89838816]
[1770056155662,1.37168086,104.32,104.29,10.89838816]
[1770056159165,1.37168086,104.32,104.29,14.43512784]
[1770056159463,1.37168086,104.33,104.3,14.4341332]
[1770056159661,5.64695171,104.33,104.3,10.89739352]
[1770056160259,18.76876968,104.33,104.3,1.30977833]
[1770056160461,9.18369139,104.33,104.3,1.30977833]
[1770056161172,9.18369139,104.33,104.3,10.89742834]
[1770056161771,1.37168086,104.33,104.3,14.43416802]
[1770056161947,1.37168086,104.33,104.3,10.89742834]
[1770056162146,4.90842054,104.32,104.29,10.89787822]
[1770056162360,1.37168086,104.32,104.3,1.30977833]
[1770056162561,4.90842054,104.33,104.3,1.30977833]
[1770056163159,4.90842054,104.33,104.3,10.89739319]
[1770056163772,1.37168086,104.32,104.29,3.53673968]
[1770056163972,1.37168086,104.32,104.29,1.30977833]
[1770056164476,1.27580086,104.32,104.29,1.30977833]
[1770056165375,1.27580086,104.32,104.29,10.89835007]
[1770056165960,10.86172656,104.32,104.29,1.30977833]
[1770056166161,3.53673968,104.31,104.28,10.8990171]
[1770056166570,3.53673968,104.31,104.29,1.30977833]
[1770056167074,4.90842054,104.32,104.29,1.30977833]
[1770056168176,1.37168086,104.32,104.29,14.43503795]
[1770056168374,1.37168086,104.32,104.3,1.30977833]
[1770056168857,14.49343998,104.33,104.3,1.30977833]
[1770056171291,1.37168086,104.32,104.29,14.43503795]
[1770056171501,14.49431307,104.32,104.29,1.30977833]
[1770056171789,51.72347367,104.29,104.28,13.12564325]
[1770056172089,0.86173059,104.29,104.28,9.58890357]
[1770056172283,1.37168086,104.31,104.28,9.58890357]
[1770056172459,1.37168086,104.31,104.29,9.58851507]
[1770056172661,4.90842054,104.32,104.29,9.58851507]
[1770056173965,4.90842054,104.32,104.29,10.74098484]
[1770056174785,1.37168086,104.31,104.28,38.24917582]
[1770056175783,1.37168086,104.3,104.27,30.25910387]
[1770056175994,4.90842054,104.29,104.27,2.47215037]
[1770056176173,1.37168086,104.28,104.27,0.30104817]
[1770056176366,4.90842054,104.28,104.27,0.30104817]
[1770056177266,1.37168086,104.28,104.27,0.30104817]
[1770056177465,13.86234292,104.31,104.27,1.44048284]
[1770056177661,1.37168086,104.3,104.27,1.44048284]
[1770056177879,1.37168086,104.3,104.27,4.97722252]
[1770056178678,1.37168086,104.3,104.27,14.56759194]
[1770056179284,9.18369139,104.31,104.27,14.56759194]
[1770056181479,1.24503115,104.32,104.29,1.11620984]
[1770056181683,1.24503115,104.32,104.29,4.65294952]
[1770056181875,9.58454804,104.34,104.3,4.65294952]
[1770056181876,4.78177083,104.34,104.3,4.65294952]
[1770056182075,4.78177083,104.31,104.27,14.5395547]
[1770056182278,1.24503115,104.29,104.27,0.30104817]
[1770056182471,4.78177083,104.29,104.27,0.30104817]
[1770056182673,1.24503115,104.28,104.27,0.30104817]
[1770056182985,1.24503115,104.28,104.26,0.1]
[1770056182986,1.24503115,104.27,104.2,4.27527085]
[1770056183171,1.24503115,104.21,104.19,6.42774241]
[1770056183373,1.24503115,104.21,104.18,0.1]
[1770056183374,1.48490369,104.19,104.18,0.1]
[1770056183667,1.357,104.21,104.18,0.1]
[1770056183879,0.00490369,104.21,104.18,3.63673968]
[1770056184085,0.00490369,104.21,104.19,3.53673968]
[1770056184381,1.24503115,104.26,104.2,8.8521964]
[1770056184572,1.24503115,104.26,104.18,60.33505158]
[1770056184573,1.24503115,104.26,104.23,8.8521964]
[1770056184775,1.24503115,104.26,104.19,0.28432314]
[1770056184969,10.09722755,104.26,104.22,8.8521964]
[1770056185285,1.24503115,104.26,104.22,8.8521964]
[1770056185486,1.24503115,104.26,104.22,10.06276834]
[1770056185881,1.24503115,104.26,104.22,1.21057194]
[1770056186280,1.24503115,104.26,104.22,10.06276834]
[1770056186989,1.24503115,104.26,104.23,10.05425043]
[1770056187194,1.24503115,104.28,104.25,8.8521964]
[1770056187386,1.24503115,104.28,104.26,8.8521964]
[1770056187791,1.24503115,104.28,104.25,8.8521964]
[1770056188292,1.24503115,104.28,104.25,10.05006471]
[1770056188992,1.24503115,104.28,104.25,19.64236933]
[1770056192874,1.24503115,104.28,104.25,8.8521964]
[1770056193391,1.24503115,104.28,104.25,18.44446332]
[1770056193698,1.24503115,104.28,104.25,8.8521964]
[1770056194394,5.36086188,104.32,104.25,9.59219777]
[1770056194594,8.8521964,104.3,104.25,19.67977556]
[1770056194895,8.8521964,104.3,104.26,1.23538139]
[1770056195894,8.8521964,104.28,104.24,1.23538139]
[1770056196094,8.8521964,104.28,104.17,43.38392882]
[1770056196095,8.8521964,104.25,104.19,10.08757779]
[1770056196287,8.8521964,104.23,104.19,10.83322916]
[1770056196482,10.09722755,104.21,104.18,0.1]
[1770056196682,1.24503115,104.2,104.18,0.1]
[1770056196886,10.09722755,104.21,104.18,0.1]
[1770056197199,5.520302,104.22,104.18,19.7863286]
[1770056197797,14.3724984,104.22,104.18,10.9341322]
[1770056197984,14.3724984,104.22,104.18,19.7863286]
[1770056198296,23.9675873,104.22,104.18,10.18757779]
[1770056198489,1.24503115,104.2,104.18,0.1]
[1770056198795,10.09722755,104.21,104.18,0.1]
[1770056199188,10.09722755,104.2,104.18,0.1]
[1770056199496,1.24503115,104.21,104.18,1.33538139]
[1770056199680,1.24503115,104.2,104.18,0.1]
[1770056199880,1.24503115,104.21,104.18,10.18757779]
[1770056200086,1.24503115,104.21,104.18,1.33538139]
[1770056200286,10.09722755,104.21,104.18,0.1]
[1770056200501,10.09722755,104.19,104.18,0.1]
[1770056200797,10.09722755,104.19,104.15,46.3490573]
[1770056201001,1.24503115,104.19,104.16,10.83568748]
[1770056201299,1.24503115,104.18,104.14,10.08757779]
[1770056201637,1.24503115,104.18,104.1,76.84869201]
[1770056201638,1.24503115,104.18,104.15,10.08757779]
[1770056201897,14.3724984,104.21,104.17,10.83464421]
[1770056202104,23.96871651,104.21,104.17,19.68684061]